[Event "8th Gibraltar U16-Junior 2018"]
[Site "Caleta"]
[Date "2018.08.19"]
[Round "4"]
[White "Kirupakaran, Vishnu"]
[Black "Bansal, Saahil"]
[Result "1/2-1/2"]
[ECO "C11"]
[WhiteElo "1786"]
[BlackElo "1454"]
[Annotator "NA RC"]
[PlyCount "103"]
[EventDate "2018.08.17"]
[EventType "swiss"]
[EventCountry "GGB"]
[SourceTitle "playchess.com"]
[Source "ChessBase"]
[SourceQuality "1"]
[TimeControl "6600+10"]

1. e4 {[%emt 0:00:00]} e6 {[%emt 0:00:01]} 2. d4 {[%emt 0:00:00]} d5 {[%emt 0:00:11]} 3. Nc3 {[%emt 0:00:00]} Nf6 {[%emt 0:00:07]} 4. e5 {[%emt 0:00:04]} Nfd7 {[%emt 0:00:11]} 5. f4 {[%emt 0:00:06]} c5 {[%emt 0:00:32]} 6. Nf3 {[%emt 0:00:05]} Nc6 {[%emt 0:00:35]} 7. Be3 {[%emt 0:00:05]} cxd4 {[%emt 0:00:12]} 8. Nxd4 {[%emt 0:00:05]} Bc5 {[%emt 0:00:26]} 9. Qd2 {[%emt 0:00:07]} Nxd4 {[%emt 0:16:44]} 10. Bxd4 {[%emt 0:00:01]} Bxd4 {[%emt 0:00:11]} 11. Qxd4 {[%emt 0:00:02]} Qb6 {[%emt 0:00:11]} 12. Qd2 {[%emt 0:00:07]} a6 {[%emt 0:00:33]} 13. O-O-O {[%emt 0:01:38]} Qc7 {[%emt 0:06:13]} 14. Ne2 {[%emt 0:13:08]} b5 {[%emt 0:04:34]} 15. Nd4 {[%emt 0:00:09]} g6 {[%emt 0:19:00]} 16. h4 {[%emt 0:03:32]} h5 {[%emt 0:00:20]} 17. g4 {[%emt 0:13:00]} hxg4 {[%emt 0:01:40]} 18. Qg2 {[%emt 0:00:23]} Nc5 {[%emt 0:02:13]} 19. Qxg4 {[%emt 0:00:56]} Ne4 {[%emt 0:00:54]} 20. Qf3 {[%emt 0:02:05]} Bb7 {[%emt 0:01:35]} 21. h5 {[%emt 0:07:46]} gxh5 {[%emt 0:26:37]} 22. Rxh5 {[%emt 0:00:13]} Rxh5 {[%emt 0:00:39]} 23. Qxh5 {[%emt 0:00:02]} Rc8 {[%emt 0:00:29]} 24. Qh8+ {[%emt 0:10:13]} Ke7 {[%emt 0:00:13]} 25. Qh4+ {[%emt 0:05:51]} Ke8 {[%emt 0:01:28]} 26. Bg2 {[%emt 0:13:28]} Qe7 {[%emt 0:02:39]} 27. Qh8+ {[%emt 0:10:03]} Kd7 {[%emt 0:01:34]} 28. Qh7 {[%emt 0:00:21]} Nc5 {[%emt 0:08:09]} 29. Kb1 {[%emt 0:08:09]} Rf8 {[%emt 0:00:29]} 30. Qh3 {[%emt 0:12:56]} Kc7 {[%emt 0:00:36]} 31. Qc3 {[%emt 0:00:41]} Kb6 {[%emt 0:01:01]} 32. Qa3 {[%emt 0:01:14]} Re8 {[%emt 0:02:01]} 33. Qe3 {[%emt 0:02:31]} Kc7 {[%emt 0:00:19]} 34. Nb3 {[%emt 0:02:47]} Nxb3 {[%emt 0:00:14]} 35. Qxb3 {[%emt 0:03:43]} Qc5 {[%emt 0:00:29]} 36. a3 {[%emt 0:00:14]} Rc8 {[%emt 0:00:28]} 37. Ka2 {[%emt 0:00:12]} Kd8 {[%emt 0:00:35]} 38. Rd2 {[%emt 0:00:10]} a5 {[%emt 0:00:42]} 39. Bf1 {[%emt 0:00:07]} b4 {[%emt 0:00:34]} 40. Rh2 {[%emt 0:00:04]} Ke7 {[%emt 0:00:24]} 41. axb4 {[%emt 0:00:08]} axb4 {[%emt 0:00:41]} 42. Rd2 {[%emt 0:00:20]} Bc6 {[%emt 0:00:32]} 43. Kb1 {[%emt 0:00:09]} Ra8 {[%emt 0:00:21]} 44. c3 {[%emt 0:00:12]} bxc3 {[%emt 0:01:25]} 45. Qxc3 {[%emt 0:00:05]} Qxc3 {[%emt 0:00:25]} 46. bxc3 {[%emt 0:00:02]} Ra4 {[%emt 0:00:14]} 47. Rd4 {[%emt 0:00:11]} Ra5 {[%emt 0:01:53]} 48. Kb2 {[%emt 0:00:18]} f6 {[%emt 0:00:28]} 49. Kb3 {[%emt 0:00:13]} fxe5 {[%emt 0:00:22]} 50. fxe5 {[%emt 0:00:01]} Ra7 {[%emt 0:00:57]} 51. Rb4 {[%emt 0:01:05]} Ra1 {[%emt 0:00:12]} 52. Bd3 {[%emt 0:00:21]} 1/2-1/2

[Event "8th Gibraltar U16-Junior 2018"]
[Site "Caleta"]
[Date "2018.08.19"]
[Round "4"]
[White "Patel, Devan"]
[Black "Schulz, Victor"]
[Result "1-0"]
[ECO "A45"]
[WhiteElo "1716"]
[BlackElo "1510"]
[Annotator "NA RC"]
[PlyCount "65"]
[EventDate "2018.08.17"]
[EventType "swiss"]
[EventCountry "GGB"]
[SourceTitle "playchess.com"]
[Source "ChessBase"]
[SourceQuality "1"]
[TimeControl "6600+10"]

1. d4 {[%emt 0:00:00]} Nf6 {[%emt 0:00:00]} 2. Bg5 {[%emt 0:01:33]} e6 {[%emt 0:01:20]} 3. e4 {[%emt 0:00:19]} Be7 {[%emt 0:00:07]} 4. Bd3 {[%emt 0:00:08]} Nc6 {[%emt 0:06:49]} 5. c3 {[%emt 0:02:33]} d6 {[%emt 0:04:48]} 6. Nd2 {[%emt 0:02:04]} e5 {[%emt 0:01:40]} 7. d5 {[%emt 0:05:36]} Nb8 {[%emt 0:00:13]} 8. f3 {[%emt 0:05:25]} Nbd7 {[%emt 0:03:06]} 9. Ne2 {[%emt 0:13:13]} O-O {[%emt 0:01:00]} 10. Qc2 {[%emt 0:24:12]} Nc5 {[%emt 0:00:43]} 11. O-O-O {[%emt 0:05:00]} Nxd3+ {[%emt 0:00:23]} 12. Qxd3 {[%emt 0:00:06]} Bd7 {[%emt 0:00:13]} 13. Be3 {[%emt 0:05:03]} b5 {[%emt 0:03:25]} 14. g4 {[%emt 0:06:56]} a5 {[%emt 0:02:54]} 15. Ng3 {[%emt 0:01:57]} c5 {[%emt 0:02:34]} 16. dxc6 {[%emt 0:04:30]} Bxc6 {[%emt 0:00:10]} 17. g5 {[%emt 0:00:33]} Nd7 {[%emt 0:00:40]} 18. h4 {[%emt 0:03:05]} Nc5 {[%emt 0:01:36]} 19. Qe2 {[%emt 0:00:13]} b4 {[%emt 0:02:21]} 20. c4 {[%emt 0:00:47]} a4 {[%emt 0:02:11]} 21. Nf5 {[%emt 0:05:08]} Qc7 {[%emt 0:14:18]} 22. Kb1 {[%emt 0:00:00]} b3 {[%emt 0:15:40]} 23. a3 {[%emt 0:00:00]} Rfb8 {[%emt 0:02:59]} 24. h5 {[%emt 0:02:34]} f6 {[%emt 0:10:30]} 25. g6 {[%emt 0:02:09]} h6 {[%emt 0:00:19]} 26. Bxh6 {[%emt 0:02:30]} gxh6 {[%emt 0:00:24]} 27. Nxh6+ {[%emt 0:00:47]} Kh8 {[%emt 0:00:46]} 28. Nf7+ {[%emt 0:00:26]} Kg7 {[%emt 0:00:19]} 29. Rdg1 {[%emt 0:01:29]} Ne6 {[%emt 0:01:09]} 30. h6+ {[%emt 0:00:27]} Kg8 {[%emt 0:00:20]} 31. Qh2 {[%emt 0:02:04]} Ng5 {[%emt 0:03:52]} 32. h7+ {[%emt 0:00:28]} Kg7 {[%emt 0:00:04]} 33. Qh6# {[%emt 0:00:06]} 1-0

[Event "8th Gibraltar U16-Junior 2018"]
[Site "Caleta"]
[Date "2018.08.19"]
[Round "4"]
[White "Onslow, Teddy"]
[Black "Tombolis, Christopher"]
[Result "1/2-1/2"]
[ECO "D00"]
[WhiteElo "1669"]
[BlackElo "1900"]
[Annotator "NA RC"]
[PlyCount "87"]
[EventDate "2018.08.17"]
[EventType "swiss"]
[EventCountry "GGB"]
[SourceTitle "playchess.com"]
[Source "ChessBase"]
[SourceQuality "1"]
[TimeControl "6600+10"]

1. d4 {[%emt 0:00:01] Ftacnik,L} d5 {[%emt 0:00:00]} 2. Bf4 {[%emt 0:00:04]} Nf6 {[%emt 0:00:03]} 3. e3 {[%emt 0:00:07]} c5 {[%emt 0:00:26]} 4. c3 {[%emt 0:00:06]} Nc6 {[%emt 0:01:25]} 5. Bd3 {[%emt 0:00:09] D00: 1 d4 d5: Unusual lines} (5. Nd2 Bf5 6. Qb3 Qc8 7. dxc5 e5 8. Bg5 Be6 9. Bxf6 gxf6 10. c4 dxc4 11. Bxc4 Bxc5 12. Rc1 Bb4 {½-½ (43) Aronian,L (2805)-Sethuraman,S (2646) Riadh 2017}) 5... Bg4 {[%emt 0:05:16]} 6. f3 {[%emt 0:01:39]} Bh5 {[%emt 0:05:13]} 7. Ne2 {[%emt 0:01:33]} e6 {[%emt 0:03:53]} 8. O-O {[%emt 0:02:42]} Qb6 $146 {[%emt 0:04:09]} ({Predecessor:} 8... Bg6 9. Bxg6 hxg6 10. Nd2 Bd6 11. Nb3 Bxf4 12. Nxf4 c4 {0-1 (45) Kuijf,M (2440)-Van der Sterren,P (2475) Wijk aan Zee 1991 CBM 022 [Ftacnik,L]}) 9. Qb3 {[%emt 0:02:04]} c4 {[%emt 0:04:36]} 10. Qxb6 axb6 {[%emt 0:00:01]} 11. Bc2 {[%emt 0:00:18]} b5 {[%emt 0:04:11]} 12. Nd2 {[%emt 0:02:05]} b4 {[%emt 0:04:58]} 13. Ng3 {[%emt 0:11:03]} Be7 {[%emt 0:04:23]} 14. Bg5 {[%emt 0:06:35]} (14. a3 $15) 14... Bg6 {[%emt 0:01:02]} 15. Bxg6 {[%emt 0:00:21]} hxg6 {[%emt 0:00:57]} 16. e4 {[%emt 0:02:00]} b5 {[%emt 0:01:57]} 17. e5 {[%emt 0:06:51]} (17. a3 $17 {was worth a try.} bxc3 18. bxc3) 17... Nd7 {[%emt 0:02:18]} 18. Bxe7 {[%emt 0:00:59]} Kxe7 {[%emt 0:01:19]} 19. a3 {[%emt 0:03:02]} bxc3 {[%emt 0:02:34]} 20. bxc3 {[%emt 0:00:06]} Ra5 {[%emt 0:00:06]} 21. Ne2 {[%emt 0:07:58]} Rha8 {[%emt 0:01:09]} 22. Rab1 {[%emt 0:03:41]} Rb8 {[%emt 0:06:08]} 23. Ra1 {[%emt 0:03:36]} Rba8 {[%emt 0:03:27]} 24. Rab1 {[%emt 0:00:32]} R8a6 {[%emt 0:00:01]} 25. Rb2 {[%emt 0:01:30]} Rxa3 {[%emt 0:04:08]} 26. Rxb5 {[%emt 0:00:50]} Ra2 {[%emt 0:00:07]} 27. Rd1 {[%emt 0:00:24]} Rc2 {[%emt 0:01:07]} 28. Kf2 {[%emt 0:03:44]} Raa2 {[%emt 0:00:06]} 29. Ke1 {[%emt 0:01:22]} Na5 {[%emt 0:01:34]} 30. Nc1 {[%emt 0:01:42]} Rcb2 $18 {[%emt 0:04:12] [#]} (30... Ra3 $17 {hält den Druck.} 31. Ne2 Nb3 32. Nxb3 cxb3) 31. Nxa2 $2 {[%emt 0:01:41]} (31. Rb4 $1 $18) 31... Rxb5 {[%emt 0:00:08]} 32. Nb4 {[%emt 0:00:43]} Nxe5 {[%emt 0:10:27]} 33. dxe5 {[%emt 0:06:14]} d4 {[%emt 0:00:08]} 34. Nxc4 {[%emt 0:09:35]} Nxc4 {[%emt 0:00:53]} 35. Nc6+ {[%emt 0:01:26]} Kd7 {[%emt 0:06:34]} 36. Rxd4+ {[%emt 0:06:23]} Kxc6 {[%emt 0:00:10]} 37. Rxc4+ {[%emt 0:00:15]} Kb6 {[%emt 0:00:07]} 38. f4 {[%emt 0:07:03]} Rb2 {[%emt 0:01:08]} 39. Kf1 {[%emt 0:03:12]} Kb7 {[%emt 0:03:39]} 40. h3 {[%emt 0:04:11]} Rc2 {[%emt 0:00:38]} 41. Kg1 {[%emt 0:03:24]} Re2 {[%emt 0:00:56]} 42. Kh2 {[%emt 0:01:23]} Re3 {[%emt 0:02:41]} 43. Rb4+ {[%emt 0:00:43]} Kc7 {[%emt 0:00:32]} 44. Rc4+ {[%emt 0:00:55]} 1/2-1/2

[Event "8th Gibraltar U16-Junior 2018"]
[Site "Caleta"]
[Date "2018.08.19"]
[Round "4"]
[White "Krivenko, Dion"]
[Black "Lovell, William Pm"]
[Result "1/2-1/2"]
[ECO "B19"]
[WhiteElo "1635"]
[BlackElo "1783"]
[Annotator "NA RC"]
[PlyCount "44"]
[EventDate "2018.08.17"]
[EventType "swiss"]
[EventCountry "GGB"]
[SourceTitle "playchess.com"]
[Source "ChessBase"]
[SourceQuality "1"]
[TimeControl "6600+10"]

1. e4 {[%emt 0:00:00]} c6 {[%emt 0:00:00]} 2. d4 {[%emt 0:00:00]} d5 {[%emt 0:00:00]} 3. Nc3 {[%emt 0:00:07]} dxe4 {[%emt 0:00:01]} 4. Nxe4 {[%emt 0:00:06]} Bf5 {[%emt 0:00:06]} 5. Ng3 {[%emt 0:00:13]} Bg6 {[%emt 0:00:07]} 6. h4 {[%emt 0:00:11]} h6 {[%emt 0:00:04]} 7. Nf3 {[%emt 0:00:09]} Nd7 {[%emt 0:00:05]} 8. h5 {[%emt 0:00:32]} Bh7 {[%emt 0:00:05]} 9. Bd3 {[%emt 0:00:05]} Bxd3 {[%emt 0:00:05]} 10. Qxd3 {[%emt 0:00:04]} e6 {[%emt 0:00:10]} 11. Bd2 {[%emt 0:00:32]} Ngf6 {[%emt 0:00:07]} 12. Ne4 {[%emt 0:00:55]} Nxe4 {[%emt 0:00:25]} 13. Qxe4 {[%emt 0:00:12]} Nf6 {[%emt 0:00:04]} 14. Qe2 {[%emt 0:00:26]} Be7 {[%emt 0:00:12]} 15. O-O-O {[%emt 0:00:38]} Qd5 {[%emt 0:00:16]} 16. c4 {[%emt 0:09:29]} Qe4 {[%emt 0:00:22]} 17. Qxe4 {[%emt 0:05:07]} Nxe4 {[%emt 0:00:03]} 18. Be3 {[%emt 0:02:22]} O-O {[%emt 0:00:57]} 19. Nd2 {[%emt 0:08:36]} Nf6 {[%emt 0:03:54]} 20. f3 {[%emt 0:05:26]} Rac8 {[%emt 0:01:34]} 21. Ne4 {[%emt 0:05:26]} b6 {[%emt 0:15:04]} 22. g4 {[%emt 0:12:37]} Rfd8 {[%emt 0:02:24]} 1/2-1/2

[Event "8th Gibraltar U16-Junior 2018"]
[Site "Caleta"]
[Date "2018.08.19"]
[Round "4"]
[White "Guerreiro, Jose Velho"]
[Black "Atara, Omeet J"]
[Result "1-0"]
[ECO "D55"]
[WhiteElo "1525"]
[BlackElo "1704"]
[Annotator "NA RC"]
[PlyCount "111"]
[EventDate "2018.08.17"]
[EventType "swiss"]
[EventCountry "GGB"]
[SourceTitle "playchess.com"]
[Source "ChessBase"]
[SourceQuality "1"]
[TimeControl "6600+10"]

1. d4 {[%emt 0:00:00]} Nf6 {[%emt 0:00:10]} 2. Nf3 {[%emt 0:00:29]} e6 {[%emt 0:00:34]} 3. c4 {[%emt 0:01:17]} b6 {[%emt 0:00:44]} 4. Bg5 {[%emt 0:00:36]} Be7 {[%emt 0:00:40]} 5. Nc3 {[%emt 0:00:58]} Bb7 {[%emt 0:00:07]} 6. e3 {[%emt 0:01:01]} d5 {[%emt 0:03:18]} 7. Be2 {[%emt 0:06:32]} Nbd7 {[%emt 0:12:24]} 8. O-O {[%emt 0:01:28]} O-O {[%emt 0:01:24]} 9. Rc1 {[%emt 0:02:42]} Rc8 {[%emt 0:04:06]} 10. Qa4 {[%emt 0:03:11]} dxc4 {[%emt 0:12:10]} 11. Qxc4 {[%emt 0:15:06]} c5 {[%emt 0:07:27]} 12. Rfd1 {[%emt 0:11:01]} Nd5 {[%emt 0:08:55]} 13. Bxe7 {[%emt 0:05:48]} Qxe7 {[%emt 0:01:11]} 14. Nxd5 {[%emt 0:01:30]} exd5 {[%emt 0:02:06]} 15. Qa4 {[%emt 0:03:15]} Bc6 {[%emt 0:10:16]} 16. Qa3 {[%emt 0:06:36]} Rfe8 {[%emt 0:07:22]} 17. dxc5 {[%emt 0:06:00]} Nxc5 {[%emt 0:03:09]} 18. Nd4 {[%emt 0:03:33]} Ba8 {[%emt 0:04:01]} 19. Bb5 {[%emt 0:05:41]} Red8 {[%emt 0:06:33]} 20. Rc2 {[%emt 0:05:58]} Qb7 {[%emt 0:06:17]} 21. b4 {[%emt 0:04:02]} a6 {[%emt 0:06:21]} 22. bxc5 {[%emt 0:03:46]} axb5 {[%emt 0:00:39]} 23. c6 {[%emt 0:01:22]} Qb8 {[%emt 0:01:20]} 24. Rdc1 {[%emt 0:00:48]} Rd6 {[%emt 0:01:46]} 25. Nf5 {[%emt 0:02:04]} Re6 {[%emt 0:01:05]} 26. c7 {[%emt 0:04:02]} Qb7 {[%emt 0:00:59]} 27. Nd6 {[%emt 0:01:05]} Rxd6 {[%emt 0:00:05]} 28. Qxd6 {[%emt 0:00:10]} g6 {[%emt 0:00:12]} 29. Rc6 {[%emt 0:01:42]} d4 {[%emt 0:00:29]} 30. exd4 {[%emt 0:01:08]} Kg7 {[%emt 0:00:32]} 31. d5 {[%emt 0:02:33]} Qa7 {[%emt 0:00:44]} 32. Rxb6 {[%emt 0:02:16]} Bxd5 {[%emt 0:00:20]} 33. Rb8 {[%emt 0:02:16]} Bb7 {[%emt 0:00:48]} 34. Rxc8 {[%emt 0:01:37]} Bxc8 {[%emt 0:00:00]} 35. Qd8 {[%emt 0:00:32]} Qa6 {[%emt 0:00:35]} 36. Re1 {[%emt 0:00:26]} Bf5 {[%emt 0:00:19]} 37. Qd4+ {[%emt 0:00:16]} Kh6 {[%emt 0:00:44]} 38. Qh4+ {[%emt 0:00:07]} Kg7 {[%emt 0:00:04]} 39. Qd4+ {[%emt 0:01:06]} Kh6 {[%emt 0:00:01]} 40. h3 {[%emt 0:00:27]} Qxa2 {[%emt 0:00:18]} 41. Qh4+ {[%emt 0:00:26]} Kg7 {[%emt 0:00:01]} 42. Qd8 {[%emt 0:00:08]} Qa5 {[%emt 0:00:11]} 43. Re8 {[%emt 0:00:32]} Qa4 {[%emt 0:00:06]} 44. Rg8+ {[%emt 0:00:14]} Kh6 {[%emt 0:00:01]} 45. Qd2+ {[%emt 0:00:20]} Kh5 {[%emt 0:00:15]} 46. c8=Q {[%emt 0:00:31]} Bxc8 {[%emt 0:00:01]} 47. Rxc8 {[%emt 0:00:03]} Qa1+ {[%emt 0:00:03]} 48. Kh2 {[%emt 0:00:04]} Qe5+ {[%emt 0:00:02]} 49. g3 {[%emt 0:00:01]} g5 {[%emt 0:00:30]} 50. Rd8 {[%emt 0:00:15]} Qf6 {[%emt 0:00:30]} 51. Rd5 {[%emt 0:00:03]} Kg6 {[%emt 0:00:21]} 52. Rxb5 {[%emt 0:00:02]} h6 {[%emt 0:00:14]} 53. Rd5 {[%emt 0:00:03]} Kh7 {[%emt 0:00:07]} 54. Qd3+ {[%emt 0:00:03]} Kh8 {[%emt 0:00:08]} 55. Rd8+ {[%emt 0:00:01]} Kg7 {[%emt 0:00:05]} 56. Qd4 {[%emt 0:00:01]} 1-0

[Event "8th Gibraltar U16-Junior 2018"]
[Site "Caleta"]
[Date "2018.08.19"]
[Round "4"]
[White "Manocha, Shobhin"]
[Black "Dhanwani, Aryan"]
[Result "1/2-1/2"]
[ECO "B19"]
[WhiteElo "1461"]
[BlackElo "1169"]
[Annotator "NA"]
[PlyCount "38"]
[EventDate "2018.08.17"]
[EventType "swiss"]
[EventCountry "GGB"]
[SourceTitle "playchess.com"]
[Source "ChessBase"]
[SourceQuality "1"]
[TimeControl "6600+10"]

1. e4 {[%emt 0:00:00]} c6 {[%emt 0:00:49]} 2. d4 {[%emt 0:00:00]} d5 {[%emt 0:00:26]} 3. Nd2 {[%emt 0:00:00]} dxe4 {[%emt 0:01:05]} 4. Nxe4 {[%emt 0:00:04]} Bf5 {[%emt 0:01:23]} 5. Ng3 {[%emt 0:00:22]} Bg6 {[%emt 0:01:28]} 6. h4 {[%emt 0:00:19]} h6 {[%emt 0:01:23]} 7. Nf3 {[%emt 0:00:36]} Nd7 {[%emt 0:01:36]} 8. h5 {[%emt 0:00:41]} Bh7 {[%emt 0:00:52]} 9. Bd3 {[%emt 0:00:09]} Ngf6 {[%emt 0:02:36]} 10. Bxh7 {[%emt 0:01:46]} Nxh7 {[%emt 0:00:10]} 11. Qd3 {[%emt 0:02:35]} Qa5+ {[%emt 0:04:15]} 12. Bd2 {[%emt 0:00:26]} Qb5 {[%emt 0:00:10]} 13. Qxb5 {[%emt 0:05:11]} cxb5 {[%emt 0:00:15]} 14. O-O {[%emt 0:04:18]} Nhf6 {[%emt 0:03:32]} 15. a4 {[%emt 0:00:50]} bxa4 {[%emt 0:03:18]} 16. c4 {[%emt 0:02:17]} g5 {[%emt 0:04:12]} 17. Rfc1 {[%emt 0:03:56]} e6 {[%emt 0:06:53]} 18. Rxa4 {[%emt 0:00:30]} Bd6 {[%emt 0:11:18]} 19. d5 {[%emt 0:14:44]} O-O {[%emt 0:08:27]} 1/2-1/2

[Event "8th Gibraltar U16-Junior 2018"]
[Site "Caleta"]
[Date "2018.08.19"]
[Round "4"]
[White "Dharmasena, Gavith"]
[Black "Lorente Serrano, Rosa Adela"]
[Result "0-1"]
[ECO "B84"]
[WhiteElo "1433"]
[BlackElo "1682"]
[Annotator "NA RC"]
[PlyCount "114"]
[EventDate "2018.08.17"]
[EventType "swiss"]
[EventCountry "GGB"]
[SourceTitle "playchess.com"]
[Source "ChessBase"]
[SourceQuality "1"]
[TimeControl "6600+10"]

1. e4 {[%emt 0:00:00]} c5 {[%emt 0:00:00]} 2. Nf3 {[%emt 0:00:03]} d6 {[%emt 0:00:16]} 3. d4 {[%emt 0:00:04]} cxd4 {[%emt 0:00:26]} 4. Nxd4 {[%emt 0:00:04]} Nf6 {[%emt 0:00:27]} 5. Nc3 {[%emt 0:00:04]} a6 {[%emt 0:01:06]} 6. Be3 {[%emt 0:00:45]} e6 {[%emt 0:04:17]} 7. Be2 {[%emt 0:01:24]} Nfd7 {[%emt 0:06:38]} 8. Qd2 {[%emt 0:04:11]} b5 {[%emt 0:00:30]} 9. a3 {[%emt 0:02:26]} Bb7 {[%emt 0:02:35]} 10. Bh5 {[%emt 0:01:00]} Qe7 {[%emt 0:10:55]} 11. Bf3 {[%emt 0:03:33]} Ne5 {[%emt 0:01:26]} 12. Be2 {[%emt 0:05:22]} Qc7 {[%emt 0:05:59]} 13. O-O {[%emt 0:00:59]} Nbd7 {[%emt 0:07:57]} 14. f4 {[%emt 0:06:15]} Nc4 {[%emt 0:00:18]} 15. Qc1 {[%emt 0:00:49]} Ndb6 {[%emt 0:03:34]} 16. Bh5 {[%emt 0:03:28]} g6 {[%emt 0:18:22]} 17. Bg4 {[%emt 0:01:14]} h5 {[%emt 0:01:38]} 18. Bh3 {[%emt 0:01:14]} Bh6 {[%emt 0:00:20]} 19. b3 {[%emt 0:08:53]} Nxe3 {[%emt 0:05:36]} 20. Qxe3 {[%emt 0:00:18]} O-O {[%emt 0:03:15]} 21. Bxe6 {[%emt 0:00:42]} fxe6 {[%emt 0:02:12]} 22. Nxe6 {[%emt 0:00:12]} Qc6 {[%emt 0:00:03]} 23. Nxf8 {[%emt 0:04:23]} Rxf8 {[%emt 0:00:05]} 24. Qg3 {[%emt 0:00:13]} Bg7 {[%emt 0:01:35]} 25. Rf3 {[%emt 0:02:30]} d5 {[%emt 0:08:11]} 26. exd5 {[%emt 0:03:31]} Nxd5 {[%emt 0:00:40]} 27. Nxd5 {[%emt 0:00:49]} Qxd5 {[%emt 0:00:41]} 28. Rd3 {[%emt 0:01:42]} Qc5+ {[%emt 0:00:31]} 29. Kh1 {[%emt 0:00:31]} Be4 {[%emt 0:02:11]} 30. Rad1 {[%emt 0:02:43]} Bxd3 {[%emt 0:01:48]} 31. Qxd3 {[%emt 0:00:18]} Qf5 {[%emt 0:00:16]} 32. g3 {[%emt 0:00:41]} Bb2 {[%emt 0:12:19]} 33. Qxf5 {[%emt 0:02:40]} Rxf5 {[%emt 0:00:00]} 34. Rd6 {[%emt 0:00:11]} Rf6 {[%emt 0:00:00]} 35. Rxf6 {[%emt 0:00:37]} Bxf6 {[%emt 0:00:00]} 36. Kg2 {[%emt 0:00:35]} Be7 {[%emt 0:00:00]} 37. a4 {[%emt 0:00:14]} bxa4 {[%emt 0:00:00]} 38. bxa4 {[%emt 0:00:01]} a5 {[%emt 0:00:16]} 39. Kf3 {[%emt 0:00:12]} Kf7 {[%emt 0:00:11]} 40. Ke4 {[%emt 0:00:07]} Ke6 {[%emt 0:01:10]} 41. h3 {[%emt 0:00:51]} Bb4 {[%emt 0:03:20]} 42. g4 {[%emt 0:00:28]} Kf6 {[%emt 0:01:25]} 43. Kd5 {[%emt 0:00:40]} Bd2 {[%emt 0:00:14]} 44. Ke4 {[%emt 0:00:12]} Ke6 {[%emt 0:01:31]} 45. f5+ {[%emt 0:00:36]} gxf5+ {[%emt 0:00:23]} 46. gxf5+ {[%emt 0:00:03]} Kd6 {[%emt 0:00:01]} 47. c4 {[%emt 0:00:38]} Kc5 {[%emt 0:00:46]} 48. f6 {[%emt 0:00:05]} Kxc4 {[%emt 0:00:18]} 49. f7 {[%emt 0:00:08]} Bb4 {[%emt 0:00:37]} 50. Kf5 {[%emt 0:00:11]} h4 {[%emt 0:00:02]} 51. Ke4 {[%emt 0:00:53]} Kb3 {[%emt 0:00:13]} 52. Kd3 {[%emt 0:00:02]} Kxa4 {[%emt 0:00:02]} 53. Kc2 {[%emt 0:00:38]} Bf8 {[%emt 0:00:12]} 54. Kc3 {[%emt 0:00:15]} Kb5 {[%emt 0:00:02]} 55. Kb3 {[%emt 0:00:20]} a4+ {[%emt 0:00:03]} 56. Kb2 {[%emt 0:00:11]} a3+ {[%emt 0:00:01]} 57. Kb3 {[%emt 0:00:15]} Kc6 {[%emt 0:00:02]} 0-1

[Event "8th Gibraltar U16-Junior 2018"]
[Site "Caleta"]
[Date "2018.08.19"]
[Round "4"]
[White "Rayner, Hugo"]
[Black "Harbinson, Alec Ryan"]
[Result "1-0"]
[ECO "C53"]
[WhiteElo "1391"]
[BlackElo "1043"]
[Annotator "NA"]
[PlyCount "85"]
[EventDate "2018.08.17"]
[EventType "swiss"]
[EventCountry "GGB"]
[SourceTitle "playchess.com"]
[Source "ChessBase"]
[SourceQuality "1"]
[TimeControl "6600+10"]

1. e4 {[%emt 0:00:00]} e5 {[%emt 0:00:00]} 2. Nf3 {[%emt 0:00:00]} Nc6 {[%emt 0:00:03]} 3. Bc4 {[%emt 0:00:00]} Bc5 {[%emt 0:00:29]} 4. c3 {[%emt 0:00:02]} h6 {[%emt 0:01:13]} 5. d4 {[%emt 0:01:16]} exd4 {[%emt 0:00:47]} 6. cxd4 {[%emt 0:00:01]} Bb4+ {[%emt 0:00:13]} 7. Bd2 {[%emt 0:00:02]} Bxd2+ {[%emt 0:00:32]} 8. Nbxd2 {[%emt 0:00:01]} d6 {[%emt 0:01:44]} 9. O-O {[%emt 0:02:16]} Bg4 {[%emt 0:01:22]} 10. h3 {[%emt 0:01:11]} Bh5 {[%emt 0:00:12]} 11. Bb5 {[%emt 0:00:38]} Nge7 {[%emt 0:01:24]} 12. d5 {[%emt 0:01:35]} a6 {[%emt 0:00:05]} 13. Bxc6+ {[%emt 0:06:12]} bxc6 {[%emt 0:00:38]} 14. dxc6 {[%emt 0:01:52]} Nxc6 {[%emt 0:03:24]} 15. Qc2 {[%emt 0:00:23]} Ne7 {[%emt 0:03:03]} 16. Rac1 {[%emt 0:00:40]} c6 {[%emt 0:02:34]} 17. Nd4 {[%emt 0:02:42]} Rc8 {[%emt 0:03:04]} 18. Nf5 {[%emt 0:03:47]} O-O {[%emt 0:05:40]} 19. Qd3 {[%emt 0:02:08]} a5 {[%emt 0:06:26]} 20. Nxd6 {[%emt 0:04:04]} Qd7 {[%emt 0:02:22]} 21. Qg3 {[%emt 0:04:03]} Rcd8 {[%emt 0:01:18]} 22. N6c4 {[%emt 0:00:55]} Bg6 {[%emt 0:01:44]} 23. Rfe1 {[%emt 0:02:34]} Nc8 {[%emt 0:03:55]} 24. Nf3 {[%emt 0:02:20]} Rfe8 {[%emt 0:03:22]} 25. Nfe5 {[%emt 0:02:27]} Qe6 {[%emt 0:01:20]} 26. Nxg6 {[%emt 0:00:27]} Qxg6 {[%emt 0:00:43]} 27. Qxg6 {[%emt 0:00:11]} fxg6 {[%emt 0:00:08]} 28. Nxa5 {[%emt 0:00:37]} Re6 {[%emt 0:00:44]} 29. Rxc6 {[%emt 0:00:43]} Rde8 {[%emt 0:00:28]} 30. Rxe6 {[%emt 0:00:31]} Rxe6 {[%emt 0:00:06]} 31. b4 {[%emt 0:00:52]} Nd6 {[%emt 0:00:15]} 32. e5 {[%emt 0:00:21]} Nf7 {[%emt 0:00:05]} 33. f4 {[%emt 0:00:10]} g5 {[%emt 0:00:17]} 34. f5 {[%emt 0:01:06]} Rxe5 {[%emt 0:00:18]} 35. Rxe5 {[%emt 0:00:06]} Nxe5 {[%emt 0:00:08]} 36. Kf1 {[%emt 0:00:24]} Kf7 {[%emt 0:00:05]} 37. Ke2 {[%emt 0:00:05]} Ke7 {[%emt 0:00:20]} 38. Ke3 {[%emt 0:00:12]} Kd6 {[%emt 0:00:39]} 39. Kd4 {[%emt 0:00:23]} Nd7 {[%emt 0:00:52]} 40. Nc4+ {[%emt 0:00:43]} Kc6 {[%emt 0:00:45]} 41. Ne5+ {[%emt 0:00:12]} Nxe5 {[%emt 0:00:07]} 42. Kxe5 {[%emt 0:00:07]} Kb5 {[%emt 0:00:10]} 43. a3 {[%emt 0:01:48]} 1-0